fUST/lending_fUST_20240212
["ID","MTS","AMOUNT","RATE_DAILY","PERIOD"]
[313826015,1707741043289,-852.26859242,0.00020822,2]
[313826016,1707741043297,-852.26859242,0.00020822,2]
[313826017,1707741043306,-852.26859242,0.00020822,2]
[313826018,1707741043315,-852.26859242,0.00020822,2]
[313826019,1707741043324,-852.26859242,0.00020822,2]
[313826020,1707741043333,-852.26859242,0.00020822,2]
[313826021,1707741043342,-852.26859242,0.00020822,2]
[313826022,1707741043352,-852.26859242,0.00020822,2]
[313826023,1707741043361,-852.26859242,0.00020822,2]
[313826024,1707741043370,-852.26859242,0.00020822,2]
[313826025,1707741043379,-852.26859242,0.00020822,2]
[313826026,1707741043388,-852.26859242,0.00020822,2]
[313826027,1707741043397,-852.26859242,0.00020822,2]
[313826028,1707741043406,-852.26859242,0.00020822,2]
[313826029,1707741043415,-852.26859242,0.00020822,2]
[313826030,1707741043423,-852.26859242,0.00020822,2]
[313826031,1707741043432,-852.26859242,0.00020822,2]
[313826032,1707741043441,-852.26859242,0.00020822,2]
[313826033,1707741043449,-852.26859242,0.00020822,2]
[313826034,1707741043458,-852.26859242,0.00020822,2]
[313826035,1707741043467,-852.26859242,0.00020822,2]
[313826036,1707741043476,-300.0,0.00020822,2]
[313826037,1707741043485,-500.0,0.00020822,2]
[313826038,1707741043493,-5317.01883512,0.00020822,2]
[313826039,1707741043502,-500.0,0.00020822,2]
[313826040,1707741043511,-5317.01883512,0.00020822,2]
[313826041,1707741043519,-500.0,0.00020822,2]
[313826042,1707741043528,-5317.01883512,0.00020822,2]
[313826043,1707741043536,-736.63132886,0.00020822,2]
[313826044,1707741043545,-500.0,0.00020822,2]
[313826045,1707741043554,-5317.01883512,0.00020822,2]
[313826046,1707741043563,-500.0,0.00020822,2]
[313826047,1707741043571,-5317.01883512,0.00020822,2]
[313826048,1707741043581,-736.63132886,0.00020822,2]
[313826049,1707741043590,-500.0,0.00020822,2]
[313826050,1707741043599,-500.0,0.00020822,2]
[313826051,1707741043607,-500.0,0.00020822,2]
[313826052,1707741043616,-736.63132886,0.00020822,2]
[313826053,1707741043626,-5317.01883512,0.00020822,2]
[313826054,1707741043635,-500.0,0.00020822,2]
[313826055,1707741043644,-500.0,0.00020822,2]
[313826056,1707741043653,-736.63132886,0.00020822,2]
[313826057,1707741043661,-5317.01883512,0.00020822,2]
[313826058,1707741043671,-500.0,0.00020822,2]
[313826059,1707741043680,-500.0,0.00020822,2]
[313826060,1707741043689,-736.63132886,0.00020822,2]
[313826061,1707741043698,-500.0,0.00020822,2]
[313826062,1707741043707,-5317.01883512,0.00020822,2]
[313826063,1707741043716,-500.0,0.00020822,2]
[313826064,1707741043725,-500.0,0.00020822,2]
[313826065,1707741043734,-736.63132886,0.00020822,2]
[313826066,1707741043743,-500.0,0.00020822,2]
[313826067,1707741043753,-5317.01883512,0.00020822,2]
[313826068,1707741043762,-500.0,0.00020822,2]
[313826069,1707741043771,-248.85043897,0.00020822,2]
[313826070,1707741043782,-500.0,0.00020822,2]
[313826071,1707741043791,-736.63132886,0.00020822,2]
[313826072,1707741043800,-500.0,0.00020822,2]
[313826073,1707741043809,-5317.01883512,0.00020822,2]
[313826074,1707741043818,-500.0,0.00020822,2]
[313826075,1707741043827,-500.0,0.00020822,2]
[313826076,1707741043836,-736.63132886,0.00020822,2]
[313826077,1707741043845,-500.0,0.00020822,2]
[313826078,1707741043854,-500.0,0.00020822,2]
[313826079,1707741043863,-5317.01883512,0.00020822,2]
[313826080,1707741043873,-736.63132886,0.00020822,2]
[313826081,1707741043882,-500.0,0.00020822,2]
[313826082,1707741043891,-500.0,0.00020822,2]
[313826083,1707741043900,-355.1177281,0.00020822,2]
[313826084,1707741043909,-5317.01883512,0.00020822,2]
[313826085,1707741043918,-736.63132886,0.00020822,2]
[313826086,1707741043927,-500.0,0.00020822,2]
[313826087,1707741043936,-500.0,0.00020822,2]
[313826088,1707741043944,-5317.01883512,0.00020822,2]
[313826089,1707741043953,-736.63132886,0.00020822,2]
[313826090,1707741043962,-500.0,0.00020822,2]
[313826091,1707741043971,-500.0,0.00020822,2]
[313826092,1707741043981,-736.63132886,0.00020822,2]
[313826093,1707741043990,-500.0,0.00020822,2]
[313826094,1707741043999,-500.0,0.00020822,2]
[313826095,1707741044008,-500.0,0.00020822,2]
[313826096,1707741044017,-500.0,0.00020822,2]
[313826097,1707741044026,-736.63132886,0.00020822,2]
[313826098,1707741044035,-5317.01883512,0.00020822,2]
[313826099,1707741044044,-500.0,0.00020822,2]
[313826100,1707741044053,-736.63132886,0.00020822,2]
[313826101,1707741044062,-5317.01883512,0.00020822,2]
[313826102,1707741044071,-500.0,0.00020822,2]
[313826103,1707741044080,-500.0,0.00020822,2]
[313826104,1707741044089,-736.63132886,0.00020822,2]
[313826105,1707741044098,-500.0,0.00020822,2]
[313826106,1707741044107,-5317.01883512,0.00020822,2]
[313826107,1707741044115,-500.0,0.00020822,2]
[313826108,1707741044124,-736.63132886,0.00020822,2]
[313826109,1707741044133,-500.0,0.00020822,2]
[313826110,1707741044142,-5317.01883512,0.00020822,2]
[313826111,1707741044152,-736.63132886,0.00020822,2]
[313826112,1707741044161,-500.0,0.00020822,2]
[313826113,1707741044170,-736.63132886,0.00020822,2]
[313826114,1707741044179,-500.0,0.00020822,2]
[313826115,1707741044189,-500.0,0.00020822,2]
[313826116,1707741044199,-736.63132886,0.00020822,2]
[313826117,1707741044208,-736.63132886,0.00020822,2]
[313826118,1707741044217,-500.0,0.00020822,2]
[313826119,1707741044226,-736.63132886,0.00020822,2]
[313826120,1707741044235,-500.0,0.00020822,2]
[313826121,1707741044244,-736.63132886,0.00020822,2]
[313826122,1707741044253,-500.0,0.00020822,2]
[313826123,1707741044263,-736.63132886,0.00020822,2]
[313826124,1707741044273,-500.0,0.00020822,2]
[313826125,1707741044282,-500.0,0.00020822,2]
[313826126,1707741044291,-736.63132886,0.00020822,2]
[313826127,1707741044300,-500.0,0.00020822,2]
[313826128,1707741044309,-500.0,0.00020822,2]
[313826129,1707741044318,-736.63132886,0.00020822,2]
[313826130,1707741044327,-500.0,0.00020822,2]
[313826131,1707741044336,-736.63132886,0.00020822,2]
[313826132,1707741044345,-500.0,0.00020822,2]
[313826133,1707741044354,-736.63132886,0.00020822,2]
[313826134,1707741044363,-736.63132886,0.00020822,2]
[313826135,1707741044372,-506.05147233,0.00020822,2]
[313826136,1707741044382,-736.63132886,0.00020822,2]
[313826137,1707741044391,-500.0,0.00020822,2]
[313826138,1707741044399,-736.63132886,0.00020822,2]
[313826139,1707741044408,-500.0,0.00020822,2]
[313826140,1707741044417,-736.63132886,0.00020822,2]
[313826141,1707741044426,-500.0,0.00020822,2]
[313826142,1707741044435,-500.0,0.00020822,2]
[313826143,1707741044444,-736.63132886,0.00020822,2]
[313826144,1707741044453,-500.0,0.00020822,2]
[313826145,1707741044462,-736.63132886,0.00020822,2]
[313826146,1707741044471,-500.0,0.00020822,2]
[313826147,1707741044480,-736.63132886,0.00020822,2]
[313826148,1707741044489,-500.0,0.00020822,2]
[313826149,1707741044498,-736.63132886,0.00020822,2]
[313826150,1707741044507,-500.0,0.00020822,2]
[313826151,1707741044516,-736.63132886,0.00020822,2]
[313826152,1707741044525,-500.0,0.00020822,2]
[313826153,1707741044536,-736.63132886,0.00020822,2]
[313826154,1707741044545,-500.0,0.00020822,2]
[313826155,1707741044555,-736.63132886,0.00020822,2]
[313826156,1707741044565,-500.0,0.00020822,2]
[313826157,1707741044574,-500.0,0.00020822,2]
[313826158,1707741044584,-736.63132886,0.00020822,2]
[313826160,1707741044593,-500.0,0.00020822,2]
[313826162,1707741044602,-736.63132886,0.00020822,2]
[313826163,1707741044612,-500.0,0.00020822,2]
[313826164,1707741044621,-736.63132886,0.00020822,2]
[313826165,1707741044633,-500.0,0.00020822,2]
[313826166,1707741044643,-736.63132886,0.00020822,2]
[313826168,1707741044653,-500.0,0.00020822,2]
[313826170,1707741044662,-736.63132886,0.00020822,2]
[313826171,1707741044672,-500.0,0.00020822,2]
[313826173,1707741044681,-736.63132886,0.00020822,2]
[313826175,1707741044690,-500.0,0.00020822,2]
[313826177,1707741044700,-736.63132886,0.00020822,2]
[313826179,1707741044709,-500.0,0.00020822,2]
[313826181,1707741044718,-736.63132886,0.00020822,2]
[313826183,1707741044728,-500.0,0.00020822,2]
[313826185,1707741044737,-736.63132886,0.00020822,2]
[313826187,1707741044746,-500.0,0.00020822,2]
[313826189,1707741044756,-500.0,0.00020822,2]
[313826191,1707741044765,-736.63132886,0.00020822,2]
[313826193,1707741044774,-736.63132886,0.00020822,2]
[313826195,1707741044783,-500.0,0.00020822,2]
[313826198,1707741044792,-736.63132886,0.00020822,2]
[313826199,1707741044801,-500.0,0.00020822,2]
[313826201,1707741044810,-500.0,0.00020822,2]
[313826203,1707741044819,-736.63132886,0.00020822,2]
[313826205,1707741044828,-736.63132886,0.00020822,2]
[313826207,1707741044838,-500.0,0.00020822,2]
[313826209,1707741044847,-736.63132886,0.00020822,2]
[313826211,1707741044856,-736.63132886,0.00020822,2]
[313826213,1707741044865,-500.0,0.00020822,2]
[313826215,1707741044876,-500.0,0.00020822,2]
[313826217,1707741044886,-736.63132886,0.00020822,2]
[313826220,1707741044896,-500.0,0.00020822,2]
[313826222,1707741044904,-736.63132886,0.00020822,2]
[313826224,1707741044913,-500.0,0.00020822,2]
[313826226,1707741044922,-736.63132886,0.00020822,2]
[313826228,1707741044929,-736.63132886,0.00020822,2]
[313826230,1707741044936,-500.0,0.00020822,2]
[313826232,1707741044945,-736.63132886,0.00020822,2]
[313826234,1707741044953,-500.0,0.00020822,2]
[313826236,1707741044960,-500.0,0.00020822,2]
[313826237,1707741044968,-736.63132886,0.00020822,2]
[313826238,1707741044976,-500.0,0.00020822,2]
[313826240,1707741044983,-736.63132886,0.00020822,2]
[313826241,1707741044990,-500.0,0.00020822,2]
[313826243,1707741044997,-740.50833587,0.00020822,2]
[313826245,1707741045004,-740.50833587,0.00020822,2]
[313826247,1707741045011,-740.50833587,0.00020822,2]
[313826249,1707741045017,-740.50833587,0.00020822,2]
[313826251,1707741045024,-740.50833587,0.00020822,2]
[313826253,1707741045031,-500.0,0.00020822,2]
[313826255,1707741045039,-740.50833587,0.00020822,2]
[313826256,1707741045046,-500.0,0.00020822,2]
[313826258,1707741045053,-500.0,0.00020822,2]
[313826260,1707741045061,-500.0,0.00020822,2]
[313826274,1707741045067,-740.50833587,0.00020822,2]
[313826276,1707741045169,-740.50833587,0.00020822,2]
[313826278,1707741045177,-500.0,0.00020822,2]
[313826280,1707741045187,-740.50833587,0.00020822,2]
[313826282,1707741045196,-500.0,0.00020822,2]
[313826283,1707741045204,-740.50833587,0.00020822,2]
[313826285,1707741045210,-500.0,0.00020822,2]
[313826287,1707741045218,-740.50833587,0.00020822,2]
[313826289,1707741045224,-500.0,0.00020822,2]
[313826291,1707741045232,-740.50833587,0.00020822,2]
[313826293,1707741045240,-500.0,0.00020822,2]
[313826294,1707741045247,-740.50833587,0.00020822,2]
[313826297,1707741045255,-740.50833587,0.00020822,2]
[313826298,1707741045263,-740.50833587,0.00020822,2]
[313826300,1707741045271,-740.50833587,0.00020822,2]
[313826302,1707741045278,-740.50833587,0.00020822,2]
[313826304,1707741045285,-740.50833587,0.00020822,2]
[313826306,1707741045294,-500.0,0.00020822,2]
[313826308,1707741045303,-500.0,0.00020822,2]
[313826310,1707741045311,-647.179347,0.00020822,2]
[313826312,1707741045318,-740.50833581,0.00020822,2]
[313826314,1707741045325,-151.0,0.00020822,2]
[313826315,1707741045332,-151.0,0.00020822,2]
[313826318,1707741045341,-151.0,0.00020822,2]
[313826320,1707741045349,-151.0,0.00020822,2]
[313826322,1707741045358,-151.0,0.00020822,2]
[313826324,1707741045364,-244.085893,0.00020822,2]
[313826326,1707741045371,-613.921976,0.00020822,2]
[313826328,1707741045380,-613.921976,0.00020822,2]
[313826330,1707741045388,-613.921976,0.00020822,2]
[313826332,1707741045397,-613.921976,0.00020822,2]
[313826334,1707741045404,-613.921976,0.00020822,2]
[313826336,1707741045413,-613.921976,0.00020822,2]
[313826337,1707741045420,-613.921976,0.00020822,2]
[313826339,1707741045427,-613.921976,0.00020822,2]
[313826342,1707741045435,-613.921976,0.00020822,2]
[313826343,1707741045444,-613.921976,0.00020822,2]
[313826345,1707741045452,-613.921976,0.00020822,2]
[313826348,1707741045461,-613.921976,0.00020822,2]
[313826349,1707741045468,-151.0,0.00020822,2]
[313826352,1707741045476,-151.0,0.00020822,2]
[313826354,1707741045484,-151.0,0.00020822,2]
[313826356,1707741045493,-151.0,0.00020822,2]
[313826358,1707741045502,-203.36956,0.00020822,2]
[313826360,1707741045509,-151.0,0.00020822,2]
[313826362,1707741045516,-151.0,0.00020822,2]
[313826363,1707741045524,-151.0,0.00020822,2]
[313826364,1707741045532,-151.0,0.00020822,2]
[313826365,1707741045541,-280.695177,0.00020822,2]
[313826366,1707741045549,-285.560312,0.00020822,2]
[313826368,1707741045556,-285.560312,0.00020822,2]
[313826369,1707741045566,-285.560312,0.00020822,2]
[313826370,1707741045574,-285.560312,0.00020822,2]
[313826371,1707741045583,-285.560312,0.00020822,2]
[313826372,1707741045592,-285.560312,0.00020822,2]
[313826373,1707741045602,-5408.442069,0.00020822,2]
[313826374,1707741045611,-5408.442069,0.00020822,2]
[313826375,1707741045621,-5408.442069,0.00020822,2]
[313826376,1707741045631,-5408.442069,0.00020822,2]
[313826377,1707741045641,-285.560312,0.00020822,2]
[313826378,1707741045650,-5408.442069,0.00020822,2]
[313826379,1707741045659,-285.560312,0.00020822,2]
[313826380,1707741045668,-285.560312,0.00020822,2]
[313826381,1707741045677,-5408.442069,0.00020822,2]
[313826382,1707741045686,-285.560312,0.00020822,2]
[313826383,1707741045695,-285.560312,0.00020822,2]
[313826384,1707741045704,-285.560312,0.00020822,2]
[313826385,1707741045713,-5408.442069,0.00020822,2]
[313826386,1707741045723,-5408.442069,0.00020822,2]
[313826387,1707741045732,-5408.442069,0.00020822,2]
[313826388,1707741045740,-5408.442069,0.00020822,2]
[313826389,1707741045750,-5408.442069,0.00020822,2]
[313826390,1707741045759,-5408.442069,0.00020822,2]
[313826391,1707741045769,-2098.476936,0.00020822,2]
[313826392,1707741045778,-2098.476936,0.00020822,2]
[313826393,1707741045787,-2098.476936,0.00020822,2]
[313826394,1707741045796,-2098.476936,0.00020822,2]
[313826395,1707741045805,-172.19986219,0.00020822,2]
[313826398,1707741046051,-1926.27707381,0.00020822,2]
[313826399,1707741046061,-2098.476936,0.00020822,2]
[313826400,1707741046071,-2098.476936,0.00020822,2]
[313826401,1707741046081,-2098.476936,0.00020822,2]
[313826403,1707741046090,-2098.476936,0.00020822,2]
[313826404,1707741046099,-916.11300019,0.00020822,2]
[313826406,1707741046110,-1182.36393581,0.00020822,2]
[313826408,1707741046119,-2098.476936,0.00020822,2]
[313826410,1707741046129,-2098.4769303,0.00020822,2]
[313826411,1707741046138,-151.0,0.00020822,2]
[313826413,1707741046147,-189.210203,0.00020822,2]
[313826414,1707741046156,-615.47,0.00020928,2]
[313826416,1707741046166,-1338.7,0.00020928,2]
[313826418,1707741046175,-500.0,0.00020928,2]
[313826420,1707741046186,-500.0,0.00020928,2]
[313826422,1707741046196,-500.0,0.00020929,2]
[313826424,1707741046205,-500.0,0.00020929,2]
[313826426,1707741046214,-500.0,0.00020929,2]
[313826428,1707741046224,-500.0,0.00020929,2]
[313826429,1707741046233,-896.59,0.00020929,2]
[313826430,1707741046242,-6226.98,0.00020929,2]
[313826432,1707741046252,-467.05,0.00020929,2]
[313826434,1707741046262,-4501.65,0.00020929,2]
[313826436,1707741046271,-500.0,0.00020929,2]
[313826438,1707741046280,-3136.89,0.00020929,2]
[313826439,1707741046289,-513.63,0.00020929,2]
[313826440,1707741046298,-500.0,0.00020929,2]
[313826441,1707741046307,-500.0,0.00020929,2]
[313826442,1707741046317,-613.921976,0.00020939,2]
[313826443,1707741046325,-613.921967,0.00020939,2]
[313826444,1707741046334,-285.560312,0.00020939,2]
[313826445,1707741046344,-5408.442069,0.00020939,2]
[313826446,1707741046353,-285.560307,0.00020939,2]
[313826447,1707741046362,-5408.442064,0.00020939,2]
[313826448,1707741046370,-1115.66,0.0002094,2]
[313826449,1707741046380,-511.75,0.0002094,2]
[313826450,1707741046390,-1149.48,0.0002094,2]
[313826451,1707741046398,-500.0,0.0002094,2]
[313826452,1707741046408,-500.0,0.00020942,2]
[313826453,1707741046417,-500.0,0.00020942,2]
[313826454,1707741046425,-500.0,0.00020942,2]
[313826455,1707741046434,-500.0,0.00020943,2]
[313826456,1707741046444,-1000.0,0.00021,21]
[313826457,1707741046453,-3189.52333114,0.00021004,2]
[313826461,1707741046714,-748.03005428,0.00020447,3]
[313826469,1707741413036,-2824.55519825,0.00018898,2]
[313826470,1707741413061,-776.34888535,0.00018899,2]
[313826471,1707741413084,-219.66015716,0.000189,2]
[313826472,1707741457593,-174.200021,0.00019221,2]
[313826473,1707741457619,-1114.9970642,0.000195,2]
[313826474,1707741457643,-179.183996,0.00020083,2]
[313826475,1707741457668,-1555.98578833,0.00020181,2]
[313826476,1707741457693,-500.0,0.00020182,2]
[313826477,1707741457717,-500.0,0.00020182,2]
[313826478,1707741457743,-500.0,0.00020182,2]
[313826479,1707741457770,-831.19,0.00020182,2]
[313826480,1707741457801,-500.0,0.00020182,2]
[313826481,1707741457827,-500.0,0.00020182,2]
[313826482,1707741457853,-728.38,0.00020182,2]
[313826483,1707741457879,-4511.18,0.00020182,2]
[313826484,1707741457904,-477.73,0.00020182,2]
[313826485,1707741457929,-538.54,0.00020182,2]
[313826486,1707741457953,-800.15,0.00020182,2]
[313826487,1707741457978,-7458.48,0.00020182,2]
[313826488,1707741458004,-500.0,0.00020182,2]
[313826489,1707741458030,-1888.32,0.00020182,2]
[313826490,1707741458278,-5611.17,0.00020182,2]
[313826491,1707741458305,-2740.43,0.00020182,2]
[313826492,1707741458330,-706.84,0.00020182,2]
[313826493,1707741458354,-500.0,0.00020182,2]
[313826494,1707741458380,-497.29,0.00020182,2]
[313826495,1707741458405,-406.33987201,0.00020182,2]
[313826496,1707741458429,-1330.46,0.00020182,2]
[313826497,1707741458452,-500.0,0.00020182,2]
[313826498,1707741458476,-1171.36,0.00020182,2]
[313826499,1707741458502,-500.0,0.00020182,2]
[313826500,1707741458527,-564.29,0.00020182,2]
[313826501,1707741458550,-500.0,0.00020183,2]
[313826502,1707741458576,-1005.8,0.00020183,2]
[313826503,1707741458599,-500.0,0.00020183,2]
[313826504,1707741458623,-500.0,0.00020183,2]
[313826505,1707741458646,-500.0,0.00020183,2]
[313826506,1707741458670,-784.52,0.00020183,2]
[313826507,1707741458694,-402.5990177,0.00020183,2]
[313826548,1707742232488,-154.86062544,0.00018161,3]
[313826551,1707742232498,-150.0,0.000189,2]
[313826553,1707742232508,-2263.152436,0.00019287,2]
[313826555,1707742232517,-3270.1009205,0.00019287,2]
[313826556,1707742232527,-154.90705577,0.00020181,2]
[313826558,1707742232537,-3001.16603441,0.00020181,2]
[313826579,1707742238662,-4970.49396559,0.00020181,2]
[313826580,1707742238672,-391.38048319,0.00020181,2]
[313826581,1707742238684,-108.61951681,0.00020181,2]
[313826582,1707742238693,-1275.02,0.00020181,2]
[313826583,1707742238716,-500.0,0.00020181,2]
[313826584,1707742238726,-1811.04825664,0.00020181,2]
[313826585,1707742238739,-259.9792,0.00020181,2]
[313826586,1707742238752,-1489.86845025,0.00020181,2]
[313826604,1707742241842,-2115.35409311,0.00020181,2]
[313826605,1707742241852,-50.33780731,0.00020181,2]
[313826606,1707742241866,-449.66219269,0.00020181,2]
[313826607,1707742241876,-796.55,0.00020181,2]
[313826608,1707742241886,-500.69180626,0.00020182,2]
[313826609,1707742241895,-963.89,0.00020182,2]
[313826610,1707742241905,-500.0,0.00020182,2]
[313826611,1707742241914,-500.0,0.00020182,2]
[313826612,1707742241923,-500.0,0.00020182,2]
[313826613,1707742241933,-500.0,0.00020182,2]
[313826614,1707742241942,-751.83,0.00020182,2]
[313826615,1707742241951,-2674.9346732,0.00020182,2]
[313826616,1707742241963,-843.94215077,0.00020182,2]
[313826617,1707742241975,-1912.95317603,0.00020182,2]
[313826618,1707742242127,-4284.72,0.00020182,2]
[313826619,1707742242136,-2744.78,0.00020182,2]
[313826620,1707742242145,-500.0,0.00020182,2]
[313826621,1707742242155,-200.0,0.0002025,2]
[313826622,1707742242165,-500.0,0.00020292,2]
[313826623,1707742242174,-24.58455112,0.00020292,2]
[313826624,1707742242186,-377.21544889,0.00020292,2]
[313826625,1707742242196,-500.0,0.00020292,2]
[313826626,1707742242205,-500.0,0.00020292,2]
[313826627,1707742242214,-500.0,0.00020292,2]
[313826628,1707742242223,-239.27933148,0.00020292,2]
[313826629,1707742242234,-4427.97066852,0.00020292,2]
[313826630,1707742242243,-698.03,0.00020292,2]
[313826631,1707742242251,-10994.36351171,0.00020293,2]
[313826632,1707742242260,-500.0,0.0002038,2]
[313826633,1707742242269,-500.0,0.0002039,2]
[313826634,1707742242278,-300.0,0.00020392,2]
[313826635,1707742242287,-2091.78651726,0.00020392,2]
[313826636,1707742242297,-3248.65,0.00020392,3]
[313826637,1707742242306,-500.0,0.00020393,2]
[313826638,1707742242315,-30053.82797456,0.00020402,2]
[313826675,1707742245290,-478.15504077,0.00020392,3]
[313827132,1707743074098,310.0,1e-08,7]
[313827184,1707743438927,-679.0873968,0.00018899,2]
[313827185,1707743438939,-158.36662069,0.000189,2]
[313827186,1707743438950,-94.16726107,0.00018907,2]
[313827187,1707743438964,-137.25162293,0.00018907,2]
[313827188,1707743438973,-948.32895931,0.00019094,2]
[313827189,1707743438986,-1967.06504999,0.00019094,2]
[313827190,1707743438994,-1114.9970642,0.000195,2]
[313827191,1707743439004,-296.0,0.0002,3]
[313827192,1707743439013,-238.11815276,0.00020178,2]
[313827193,1707743439022,-185.07172042,0.00020179,2]
[313827194,1707743439030,-500.0,0.0002018,2]
[313827195,1707743439040,-500.0,0.0002018,2]
[313827196,1707743439049,-500.0,0.0002018,2]
[313827197,1707743439058,-287.70296194,0.0002018,2]
[313827257,1707743443762,-228.39703806,0.0002018,2]
[313827259,1707743443772,-1122.56,0.0002018,2]
[313827261,1707743443781,-223.5198988,0.0002018,2]
[313827545,1707743446755,-276.4801012,0.0002018,2]
[313827547,1707743446764,-763.36,0.0002018,2]
[313827548,1707743446773,-4472.78,0.0002018,2]
[313827550,1707743446783,-540.78,0.0002018,2]
[313827552,1707743446791,-668.95,0.0002018,2]
[313827554,1707743446800,-887.21,0.0002018,2]
[313827556,1707743446809,-500.0,0.0002018,2]
[313827558,1707743446818,-720.5,0.0002018,2]
[313827559,1707743446827,-2409.94082028,0.0002018,2]
[313827768,1707743464821,155.11081435,5e-05,2]
[313827780,1707744400873,665.6173536,0.00016819,2]
[313827781,1707744454570,43869.27183205,0.00016819,2]
[313827782,1707744454597,241625.53061128,0.00016819,2]
[313827783,1707744470551,186500.14343307,0.00016819,2]
[313827784,1707744495536,24900.0,0.00016828,2]
[313827803,1707744631796,-154.87609912,0.00017607,3]
[313827804,1707744631805,-159.92692077,0.00017608,2]
[313827805,1707744631814,-981.49190096,0.00017706,2]
[313827806,1707744631825,-154.87609912,0.00017706,2]
[313827807,1707744631834,-304.35560372,0.0001773,2]
[313827808,1707744631843,-505.68682736,0.00017993,2]
[313827847,1707744639447,-1948.7295734,0.00017705,2]
[313827848,1707744639457,-2142.66337594,0.00017993,2]
[313827849,1707744639466,-3454.64355599,0.00017993,2]
[313827856,1707744641168,-991.39679073,0.00017993,2]
[313827887,1707744642911,-10925.86950791,0.00017993,2]
[313827889,1707744642923,-2126.33205002,0.00017993,2]
[313827895,1707744642967,-1250.52306314,0.00017993,2]
[313827919,1707744643183,-154.87609912,0.00017258,3]
[313827921,1707744643192,-13015.29881901,0.00017993,2]
[313827923,1707744643201,-2525.18138511,0.00018807,2]
[313827924,1707744643216,-200.0,0.00018891,2]
[313827927,1707744643225,-738.68181246,0.000189,2]
[313827929,1707744643235,-251.05849205,0.00019078,2]
[313827930,1707744643245,-500.0,0.00019178,2]
[313827933,1707744643258,-500.0,0.00019178,2]
[313827934,1707744643267,-500.0,0.00019178,2]
[313827937,1707744643277,-500.0,0.00019178,2]
[313827939,1707744643289,-500.0,0.00019178,2]
[313827941,1707744643298,-10989.02,0.00019178,2]
[313827943,1707744643307,-500.0,0.00019178,2]
[313827945,1707744643316,-1336.6,0.00019178,2]
[313827947,1707744643326,-500.0,0.00019178,2]
[313827949,1707744643334,-500.0,0.00019178,2]
[313827951,1707744643343,-1003.74229245,0.00019178,2]
[313827952,1707744643352,-1909.24,0.00019178,2]
[313827954,1707744643361,-500.0,0.00019178,2]
[313827956,1707744643370,-6449.46,0.00019178,2]
[313827958,1707744643380,-7412.68,0.00019178,2]
[313827960,1707744643389,-628.25869461,0.00019178,2]
[313827962,1707744643398,-598.79,0.00019178,2]
[313827964,1707744643408,-500.0,0.00019178,2]
[313827967,1707744643417,-500.0,0.00019178,2]
[313827969,1707744643426,-1106.43,0.00019178,2]
[313827971,1707744643435,-500.0,0.00019178,2]
[313827972,1707744643444,-500.0,0.00019178,2]
[313827974,1707744643453,-1406.94,0.00019178,2]
[313827976,1707744643463,-614.36,0.00019178,2]
[313827979,1707744643473,-169.05068,0.00019178,2]
[313827981,1707744643483,-166.6666704,0.00019178,2]
[313827983,1707744643491,-251.05849201,0.00019328,2]
[313827985,1707744643501,-500.0,0.00019452,2]
[313827987,1707744643510,-500.0,0.00019452,2]
[313827989,1707744643519,-500.0,0.00019452,2]
[313827991,1707744643529,-500.0,0.00019452,2]
[313827993,1707744643538,-10989.02,0.00019452,2]
[313827995,1707744643547,-500.0,0.00019452,2]
[313827997,1707744643556,-1336.6,0.00019452,2]
[313827999,1707744643565,-500.0,0.00019452,2]
[313828000,1707744643574,-500.0,0.00019452,2]
[313828002,1707744643583,-500.0,0.00019452,2]